fUST/lending_fUST_20250717
["ID","MTS","AMOUNT","RATE_DAILY","PERIOD"]
[372635739,1752721851516,-460.0,0.00019268,2]
[372635740,1752721851526,-4758.8,0.00019268,2]
[372635741,1752721851535,-936.52,0.00019268,2]
[372635742,1752721851545,-460.0,0.00019268,2]
[372635743,1752721851555,-1448.09,0.00019268,2]
[372635744,1752721851564,-481.2,0.00019268,2]
[372635745,1752721851574,-460.0,0.00019269,2]
[372635746,1752721851584,-1906.78,0.00019269,2]
[372635747,1752721851594,-5477.03,0.00019269,2]
[372635748,1752721851603,-1772.29,0.00019269,2]
[372635749,1752721851613,-164.979664,0.00019272,2]
[372635750,1752721851624,-164.979664,0.00019272,2]
[372635751,1752721851634,-460.0,0.00019272,2]
[372635752,1752721851644,-460.0,0.00019272,2]
[372635753,1752721851654,-151.0,0.00019272,2]
[372635754,1752721851663,-151.0,0.00019272,2]
[372635755,1752721851673,-461.63,0.00019272,2]
[372635756,1752721851683,-151.0,0.00019272,2]
[372635757,1752721851692,-460.0,0.00019272,2]
[372635758,1752721851701,-460.0,0.00019273,2]
[372635759,1752721851711,-460.0,0.00019273,2]
[372635760,1752721851720,-460.0,0.00019273,2]
[372635761,1752721851730,-242.04410817,0.00019274,2]
[372635762,1752721851739,-191.568259,0.00019274,2]
[372635763,1752721851749,-191.568259,0.00019274,2]
[372635764,1752721851758,-798.32,0.00019274,2]
[372635765,1752721851768,-265.39797,0.00019274,2]
[372635766,1752721851778,-265.39797,0.00019274,2]
[372635767,1752721851787,-460.0,0.00019274,2]
[372635768,1752721851797,-151.0,0.00019275,2]
[372635769,1752721851807,-460.0,0.00019275,2]
[372635770,1752721851817,-180.428539,0.00019278,2]
[372635771,1752721851831,-180.428539,0.00019278,2]
[372635772,1752721851840,-151.0,0.00019278,2]
[372635773,1752721851850,-151.0,0.00019278,2]
[372635774,1752721851860,-151.0,0.0001928,2]
[372635775,1752721851869,-2000.0,0.00019282,2]
[372635776,1752721851879,-180.428539,0.00019286,2]
[372635777,1752721851888,-180.428539,0.00019286,2]
[372635778,1752721851898,-1702.0,0.00019295,2]
[372635779,1752721851908,-151.0,0.000193,2]
[372635780,1752721851918,-191.568259,0.00019309,2]
[372635781,1752721851928,-191.568259,0.00019309,2]
[372635782,1752721851937,-191.568259,0.00019309,2]
[372635783,1752721851948,-191.568259,0.00019309,2]
[372635784,1752721851958,-164.979664,0.00019309,2]
[372635785,1752721852067,-164.979664,0.00019309,2]
[372635786,1752721852078,-164.979664,0.00019309,2]
[372635787,1752721852087,-164.979664,0.00019309,2]
[372635788,1752721852097,-151.0,0.00019309,2]
[372635789,1752721852106,-265.39797,0.00019309,2]
[372635790,1752721852115,-265.39797,0.00019309,2]
[372635791,1752721852125,-251.625628,0.00019309,2]
[372635792,1752721852135,-251.625628,0.00019309,2]
[372635793,1752721852151,-151.0,0.00019309,2]
[372635794,1752721852161,-151.0,0.00019309,2]
[372635795,1752721852171,-251.625628,0.00019309,2]
[372635796,1752721852180,-251.625628,0.00019309,2]
[372635797,1752721852190,-151.0,0.00019309,2]
[372635798,1752721852200,-151.0,0.00019309,2]
[372635799,1752721852210,-151.0,0.00019309,2]
[372635800,1752721852220,-151.0,0.00019309,2]
[372635801,1752721852230,-151.0,0.00019309,2]
[372635802,1752721852240,-500.0,0.00019309,2]
[372635803,1752721852249,-500.0,0.00019309,2]
[372635804,1752721852259,-153.0,0.00019315,2]
[372635805,1752721852269,-153.0,0.00019315,2]
[372635806,1752721852279,-153.0,0.00019315,2]
[372635807,1752721852288,-153.0,0.00019315,2]
[372635808,1752721852298,-153.0,0.00019315,2]
[372635809,1752721852307,-153.0,0.00019315,2]
[372635810,1752721852316,-153.0,0.00019315,2]
[372635811,1752721852325,-153.0,0.00019315,2]
[372635812,1752721852335,-153.0,0.00019315,2]
[372635813,1752721852345,-153.0,0.00019315,2]
[372635814,1752721852355,-153.0,0.00019315,2]
[372635815,1752721852364,-153.0,0.00019315,2]
[372635816,1752721852374,-153.0,0.00019315,2]
[372635817,1752721852383,-153.0,0.00019315,2]
[372635818,1752721852393,-153.0,0.00019315,2]
[372635819,1752721852402,-153.0,0.00019315,2]
[372635820,1752721852412,-153.0,0.00019315,2]
[372635821,1752721852421,-180.428539,0.00019329,2]
[372635822,1752721852430,-180.428542,0.00019329,2]
[372635823,1752721852440,-301.547645,0.00019329,2]
[372635824,1752721852449,-265.39797,0.00019329,2]
[372635825,1752721852459,-265.39797,0.00019329,2]
[372635826,1752721852469,-151.0,0.00019329,2]
[372635827,1752721852479,-51781.07125714,0.00019329,2]
[372635828,1752721852488,-5000.0,0.00019346,2]
[372635829,1752721852498,-500.0,0.00019373,2]
[372635830,1752721852508,-500.51885288,0.00019373,2]
[372635831,1752721852518,-517.09736448,0.00019373,2]
[372635832,1752721852527,-500.49764227,0.00019373,2]
[372635833,1752721852536,-500.0,0.00019373,2]
[372635834,1752721852546,-155.12534803,0.00019373,2]
[372635835,1752721852555,-158.12713293,0.00019373,2]
[372635836,1752721852565,-347.54868282,0.00019373,2]
[372635837,1752721852574,-158.22056861,0.00019373,2]
[372635838,1752721852583,-500.0,0.00019373,2]
[372635839,1752721852593,-500.0,0.00019373,2]
[372635840,1752721852602,-370.58265892,0.00019373,2]
[372635841,1752721852611,-500.0,0.00019373,2]
[372635842,1752721852621,-501.15315688,0.00019373,2]
[372635843,1752721852630,-500.0,0.00019373,2]
[372635844,1752721852639,-502.35243242,0.00019373,2]
[372635845,1752721852649,-500.0,0.00019373,2]
[372635846,1752721852658,-168.0,0.00019373,2]
[372635847,1752721852668,-131709.2994338,0.00019381,2]
[372635848,1752721852677,-265.39797,0.00019381,2]
[372635849,1752721852686,-265.39797,0.00019381,2]
[372635850,1752721852696,-251.625628,0.00019381,2]
[372635851,1752721852706,-188.678567,0.00019381,2]
[372635852,1752721852715,-251.625628,0.00019381,2]
[372635853,1752721852726,-151.0,0.00019381,2]
[372635854,1752721852735,-235.827116,0.00019381,2]
[372635855,1752721852745,-151.0,0.00019381,2]
[372635856,1752721852755,-11593.50930424,0.00019383,2]
[372635857,1752721852765,-5000.0,0.00019386,2]
[372635858,1752721852782,-1702.0,0.00019388,2]
[372635859,1752721852791,-160.0,0.00019424,2]
[372635860,1752721852801,-4000.0,0.00019426,2]
[372635861,1752721852811,-151.0,0.00019452,2]
[372635862,1752721852823,-151.0,0.00019452,2]
[372635863,1752721852833,-1702.0,0.00019465,2]
[372635864,1752721852843,-1702.0,0.00019499,2]
[372635865,1752721852852,-1834.63609853,0.00019501,2]
[372635866,1752721852863,-1000.0,0.00019519,2]
[372635867,1752721852872,-268.78440359,0.00019519,2]
[372635868,1752721852882,-151.0,0.00019519,2]
[372635869,1752721852892,-151.0,0.00019519,2]
[372635870,1752721852903,-151.0,0.00019519,2]
[372635871,1752721852913,-596.18785787,0.00019519,2]
[372635872,1752721852923,-151.0,0.00019519,2]
[372635873,1752721852932,-911.0,0.00019519,2]
[372635874,1752721852941,-500.0,0.00019519,2]
[372635875,1752721852952,-151.0,0.00019519,2]
[372635876,1752721852962,-500.0,0.00019519,2]
[372635877,1752721852973,-500.0,0.00019519,2]
[372635878,1752721852983,-661.98781375,0.00019521,2]
[372635879,1752721852993,-1000.0,0.00019521,2]
[372635880,1752721853002,-1002.33047726,0.00019521,2]
[372635881,1752721853011,-1002.41079222,0.00019521,2]
[372635882,1752721853021,-460.0,0.00019534,2]
[372635883,1752721853031,-480.26,0.00019534,2]
[372635884,1752721853040,-3160.74,0.00019534,2]
[372635885,1752721853050,-7086.7,0.00019535,2]
[372635886,1752721853061,-460.0,0.00019535,2]
[372635887,1752721853072,-4330.62,0.00019535,2]
[372635888,1752721853082,-1130.34,0.00019535,2]
[372635889,1752721853092,-460.0,0.00019535,2]
[372635890,1752721853102,-460.0,0.00019535,2]
[372635891,1752721853113,-645.76,0.00019535,2]
[372635892,1752721853124,-3065.11,0.00019535,2]
[372635893,1752721853138,-3304.66,0.00019535,2]
[372635894,1752721853147,-460.0,0.00019535,2]
[372635895,1752721853157,-2477.9,0.00019535,2]
[372635896,1752721853166,-796.26,0.00019535,2]
[372635897,1752721853175,-460.0,0.00019535,2]
[372635898,1752721853184,-2385.51,0.00019535,2]
[372635899,1752721853194,-350.0,0.00019536,3]
[372635900,1752721853203,-460.0,0.00019536,2]
[372635901,1752721853213,-239.29823351,0.00019536,2]
[372635902,1752721853224,-460.0,0.00019536,2]
[372635903,1752721853233,-460.0,0.00019536,2]
[372635904,1752721853243,-460.0,0.00019536,2]
[372635905,1752721853252,-638.36,0.00019536,2]
[372635906,1752721853262,-857.57,0.00019536,2]
[372635907,1752721853271,-460.0,0.00019536,2]
[372635908,1752721853281,-778.05,0.00019536,2]
[372635909,1752721853291,-507.89129842,0.00019536,2]
[372635910,1752721853300,-460.0,0.00019536,2]
[372635911,1752721853311,-786.22,0.00019536,2]
[372635912,1752721853321,-816.29,0.00019536,2]
[372635913,1752721853330,-1419.46,0.00019536,2]
[372635914,1752721853339,-843.09,0.00019536,2]
[372635915,1752721853349,-460.0,0.00019536,2]
[372635916,1752721853358,-460.0,0.00019536,2]
[372635917,1752721853368,-460.0,0.00019536,2]
[372635918,1752721853378,-460.0,0.00019536,2]
[372635919,1752721853387,-585.07,0.00019537,2]
[372635920,1752721853396,-6141.92,0.00019537,2]
[372635921,1752721853406,-1263.65,0.00019537,2]
[372635922,1752721853416,-2338.02,0.00019537,2]
[372635923,1752721853425,-198.67,0.00019537,2]
[372635924,1752721853435,-2992.09,0.00019537,2]
[372635925,1752721853444,-472.77,0.00019537,2]
[372635926,1752721853454,-553.6,0.00019539,3]
[372635927,1752721853463,-1107.18,0.0001954,3]
[372635928,1752721853477,-460.0,0.00019542,2]
[372635929,1752721853487,-460.0,0.00019542,2]
[372635930,1752721853496,-543.52,0.00019542,2]
[372635931,1752721853506,-487.93,0.00019542,2]
[372635932,1752721853516,-699.72,0.00019542,2]
[372635933,1752721853526,-727.89,0.00019542,2]
[372635934,1752721853535,-554.97,0.00019542,2]
[372635935,1752721853545,-936.36,0.00019542,2]
[372635936,1752721853555,-826.17,0.00019542,2]
[372635937,1752721853566,-896.59,0.00019542,2]
[372635938,1752721853578,-601.2,0.00019542,2]
[372635939,1752721853588,-460.0,0.00019542,2]
[372635940,1752721853599,-460.0,0.00019542,2]
[372635941,1752721853688,-460.0,0.00019542,2]
[372635942,1752721853698,-790.32,0.00019542,2]
[372635943,1752721853707,-460.0,0.00019542,2]
[372635944,1752721853717,-650.81,0.00019542,2]
[372635945,1752721853729,-460.0,0.00019542,2]
[372635946,1752721853739,-688.53,0.00019542,2]
[372635947,1752721853748,-460.0,0.00019542,2]
[372635948,1752721853758,-751.99,0.00019542,2]
[372635949,1752721853768,-460.0,0.00019542,2]
[372635950,1752721853777,-4758.8,0.00019542,2]
[372635951,1752721853787,-936.52,0.00019542,2]
[372635952,1752721853796,-460.0,0.00019542,2]
[372635953,1752721853806,-1448.09,0.00019542,2]
[372635954,1752721853817,-481.2,0.00019542,2]
[372635955,1752721853830,-460.0,0.00019543,2]
[372635956,1752721853840,-1906.78,0.00019543,2]
[372635957,1752721853850,-5477.03,0.00019543,2]
[372635958,1752721853860,-1772.29,0.00019543,2]
[372635959,1752721853871,-460.0,0.00019546,2]
[372635960,1752721853881,-460.0,0.00019546,2]
[372635961,1752721853891,-461.63,0.00019546,2]
[372635962,1752721853903,-460.0,0.00019546,2]
[372635963,1752721853913,-151.0,0.00019546,2]
[372635964,1752721853923,-460.0,0.00019547,2]
[372635965,1752721853932,-471.13780723,0.00019547,2]
[372635966,1752721853942,-164.979664,0.00019548,2]
[372635967,1752721853952,-164.979664,0.00019548,2]
[372635968,1752721853961,-798.32,0.00019548,2]
[372635969,1752721853974,-151.0,0.00019548,2]
[372635970,1752721853983,-151.0,0.00019549,2]
[372635971,1752721853993,-191.568259,0.00019549,2]
[372635972,1752721854002,-191.568259,0.00019549,2]
[372635973,1752721854011,-460.0,0.00019549,2]
[372635974,1752721854021,-265.39797,0.00019549,2]
[372635975,1752721854031,-265.39797,0.00019549,2]
[372635976,1752721854040,-251.625628,0.00019549,2]
[372635977,1752721854051,-251.625628,0.00019549,2]
[372635978,1752721854061,-3000.0,0.00019555,2]
[372635979,1752721854070,-151.0,0.00019555,2]
[372635980,1752721854079,-151.0,0.00019563,2]
[372635981,1752721854089,-196.137102,0.00019564,2]
[372635982,1752721854098,-196.137112,0.00019564,2]
[372635983,1752721854108,-215.0738,0.00019581,2]
[372635984,1752721854118,-3379.40188252,0.00019599,2]
[372635985,1752721854127,-151.0,0.000196,2]
[372635986,1752721854137,-3095.35,0.00019621,2]
[372635987,1752721854146,-11593.50930424,0.00019624,2]
[372635988,1752721854156,-649.757,0.00019671,2]
[372635989,1752721854166,-971.816,0.00019671,2]
[372635990,1752721854175,-151.0,0.00019728,2]
[372635991,1752721854185,-151.0,0.00019728,2]
[372635992,1752721854194,-151.0,0.00019728,2]
[372635993,1752721854204,-1702.0,0.00019731,2]
[372635994,1752721854213,-151.0,0.00019758,2]
[372635995,1752721854224,-1702.0,0.00019785,2]
[372635996,1752721854233,-1000.0,0.00019793,2]
[372635997,1752721854244,-151.0,0.00019793,2]
[372635998,1752721854253,-151.0,0.00019793,2]
[372635999,1752721854262,-198.0,0.00019793,2]
[372636000,1752721854272,-198.0,0.00019793,2]
[372636001,1752721854281,-911.0,0.00019793,2]
[372636002,1752721854291,-500.0,0.00019793,2]
[372636003,1752721854300,-151.0,0.00019793,2]
[372636004,1752721854310,-500.0,0.00019793,2]
[372636005,1752721854319,-500.0,0.00019793,2]
[372636006,1752721854328,-151.0,0.000198,2]
[372636007,1752721854338,-460.0,0.00019808,2]
[372636008,1752721854347,-480.26,0.00019808,2]
[372636009,1752721854357,-3160.74,0.00019808,2]
[372636010,1752721854367,-7086.7,0.00019809,2]
[372636011,1752721854377,-460.0,0.00019809,2]
[372636012,1752721854387,-4330.62,0.00019809,2]
[372636013,1752721854395,-1130.34,0.00019809,2]
[372636014,1752721854405,-460.0,0.00019809,2]
[372636015,1752721854414,-645.76,0.00019809,2]
[372636016,1752721854424,-3065.11,0.00019809,2]
[372636017,1752721854433,-3304.66,0.00019809,2]
[372636018,1752721854442,-460.0,0.00019809,2]
[372636019,1752721854451,-2477.9,0.00019809,2]
[372636020,1752721854461,-796.26,0.00019809,2]
[372636021,1752721854471,-460.0,0.00019809,2]
[372636022,1752721854481,-164.979664,0.0001981,2]
[372636023,1752721854490,-164.979664,0.0001981,2]
[372636024,1752721854499,-460.0,0.0001981,2]
[372636025,1752721854509,-460.0,0.0001981,2]
[372636026,1752721854518,-460.0,0.0001981,2]
[372636027,1752721854528,-460.0,0.0001981,2]
[372636028,1752721854538,-638.36,0.0001981,2]
[372636029,1752721854548,-857.57,0.0001981,2]
[372636030,1752721854557,-460.0,0.0001981,2]
[372636031,1752721854567,-778.05,0.0001981,2]
[372636032,1752721854576,-460.0,0.0001981,2]
[372636033,1752721854586,-786.22,0.0001981,2]
[372636034,1752721854595,-816.29,0.0001981,2]
[372636035,1752721854604,-1419.46,0.0001981,2]
[372636036,1752721854614,-843.09,0.0001981,2]
[372636037,1752721854624,-460.0,0.0001981,2]
[372636038,1752721854633,-460.0,0.0001981,2]
[372636039,1752721854643,-460.0,0.0001981,2]
[372636040,1752721854652,-460.0,0.0001981,2]
[372636041,1752721854662,-585.07,0.00019811,2]
[372636042,1752721854671,-6141.92,0.00019811,2]
[372636043,1752721854680,-1263.65,0.00019811,2]
[372636044,1752721854690,-2338.02,0.00019811,2]
[372636045,1752721854699,-2992.09,0.00019811,2]
[372636046,1752721854708,-472.77,0.00019811,2]
[372636047,1752721854718,-420.0,0.00019815,2]
[372636048,1752721854729,-460.0,0.00019816,2]
[372636049,1752721854739,-161.57848965,0.00019816,2]
[372636050,1752721854748,-543.52,0.00019816,2]
[372636051,1752721854758,-487.93,0.00019816,2]
[372636052,1752721854767,-699.72,0.00019816,2]
[372636053,1752721854776,-727.89,0.00019816,2]
[372636054,1752721854785,-554.97,0.00019816,2]
[372636055,1752721854795,-936.36,0.00019816,2]
[372636056,1752721854804,-826.17,0.00019816,2]
[372636057,1752721854814,-896.59,0.00019816,2]
[372636058,1752721854827,-601.2,0.00019816,2]
[372636059,1752721854837,-558.80890755,0.00019816,2]
[372636060,1752721854846,-460.0,0.00019816,2]
[372636061,1752721854856,-460.0,0.00019816,2]
[372636062,1752721854867,-790.32,0.00019816,2]
[372636063,1752721854877,-460.0,0.00019816,2]
[372636064,1752721854887,-650.81,0.00019816,2]
[372636065,1752721854898,-460.0,0.00019816,2]
[372636066,1752721854907,-688.53,0.00019816,2]
[372636067,1752721854917,-460.0,0.00019816,2]
[372636068,1752721854927,-751.99,0.00019816,2]
[372636069,1752721854937,-460.0,0.00019816,2]
[372636070,1752721854946,-4758.8,0.00019816,2]
[372636071,1752721854956,-936.52,0.00019816,2]
[372636072,1752721854966,-460.0,0.00019816,2]
[372636073,1752721854977,-1448.09,0.00019816,2]
[372636074,1752721854986,-481.2,0.00019816,2]
[372636075,1752721854996,-460.0,0.00019817,2]
[372636076,1752721855006,-1906.78,0.00019817,2]
[372636077,1752721855015,-5477.03,0.00019817,2]
[372636078,1752721855024,-1772.29,0.00019817,2]
[372636079,1752721855035,-151.0,0.00019817,2]
[372636080,1752721855044,-460.0,0.0001982,2]
[372636081,1752721855054,-460.0,0.0001982,2]
[372636082,1752721855063,-461.63,0.0001982,2]
[372636083,1752721855144,-460.0,0.0001982,2]
[372636084,1752721855154,-460.0,0.00019821,2]
[372636085,1752721855164,-191.568259,0.00019822,2]
[372636086,1752721855173,-191.568259,0.00019822,2]
[372636087,1752721855183,-798.32,0.00019822,2]
[372636088,1752721855192,-265.39797,0.00019822,2]
[372636089,1752721855202,-265.39797,0.00019822,2]
[372636090,1752721855211,-251.625628,0.00019822,2]
[372636091,1752721855222,-251.625628,0.00019822,2]
[372636092,1752721855231,-151.0,0.00019822,2]
[372636093,1752721855240,-460.0,0.00019823,2]
[372636094,1752721855250,-166.300298,0.00019824,2]
[372636095,1752721855260,-151.0,0.00019828,2]
[372636096,1752721855269,-252.378523,0.00019828,2]
[372636097,1752721855278,-152.111516,0.00019836,2]
[372636098,1752721855287,-5000.0,0.00019846,2]
[372636099,1752721855297,-11593.50930424,0.00019866,2]
[372636100,1752721855307,-1834.63609853,0.00019888,2]
[372636101,1752721855317,-7723.5146221,0.00019888,2]
[372636102,1752721855327,-1702.0,0.00019909,2]
[372636103,1752721855337,-518.21826415,0.00019921,2]
[372636104,1752721855346,-1000.0,0.00019921,2]
[372636105,1752721855356,-1000.0,0.00019921,2]
[372636106,1752721855365,-1000.0,0.00019921,2]
[372636107,1752721855375,-1000.0,0.00019921,2]
[372636108,1752721855384,-1000.0,0.00019921,2]
[372636109,1752721855394,-294.248889,0.00019923,3]
[372636110,1752721855404,-151.0,0.0001993,2]
[372636111,1752721855413,-164.979664,0.0001993,2]
[372636112,1752721855423,-164.979664,0.0001993,2]
[372636113,1752721855432,-476.16111942,0.0001993,3]
[372636114,1752721855442,-12607.95677342,0.0001993,3]
[372636115,1752721855452,-214.44804168,0.0001993,3]
[372636116,1752721855461,-260.0,0.00019972,2]
[372636117,1752721855472,-501.05427893,0.00019973,2]
[372636118,1752721855481,-500.0,0.00019973,2]
[372636119,1752721855491,-501.77364308,0.00019973,2]
[372636120,1752721855501,-500.87465959,0.00019973,2]
[372636121,1752721855510,-500.0,0.00019973,2]
[372636122,1752721855520,-500.0,0.00019973,2]
[372636123,1752721855529,-152.10688042,0.00019973,2]
[372636124,1752721855539,-500.0,0.00019973,2]
[372636125,1752721855548,-500.0,0.00019973,2]
[372636126,1752721855557,-160.10287166,0.00019973,2]
[372636127,1752721855567,-158.04118509,0.00019973,2]
[372636128,1752721855576,-500.0,0.00019973,2]
[372636129,1752721855586,-500.0,0.00019973,2]
[372636130,1752721855595,-500.0,0.00019973,2]
[372636131,1752721855605,-500.0,0.00019973,2]
[372636132,1752721855614,-260.14798762,0.00019973,2]
[372636133,1752721855624,-500.0,0.00019973,2]
[372636134,1752721855634,-500.0,0.00019973,2]
[372636135,1752721855643,-500.0,0.00019973,2]
[372636136,1752721855653,-500.0,0.00019973,2]
[372636137,1752721855663,-500.0,0.00019973,2]
[372636138,1752721855672,-160.12631199,0.00019973,2]
[372636139,1752721855682,-500.0,0.00019973,2]
[372636140,1752721855691,-155.19178196,0.00019973,2]
[372636141,1752721855701,-500.0,0.00019973,2]
[372636142,1752721855711,-500.0,0.00019973,2]
[372636143,1752721855721,-500.0,0.00019973,2]
[372636144,1752721855731,-500.0,0.00019973,2]
[372636145,1752721855741,-500.50308032,0.00019973,2]
[372636146,1752721855751,-500.0,0.00019973,2]
[372636147,1752721855760,-521.83916639,0.00019973,2]
[372636148,1752721855770,-500.0,0.00019973,2]
[372636149,1752721855780,-385.95731252,0.00019973,2]
[372636150,1752721855789,-500.22689423,0.00019973,2]
[372636151,1752721855798,-500.0,0.00019973,2]
[372636152,1752721855808,-500.71964523,0.00019973,2]
[372636153,1752721855821,-500.0,0.00019973,2]
[372636154,1752721855830,-172.77631336,0.00019973,2]
[372636155,1752721855841,-500.0,0.00019973,2]
[372636156,1752721855850,-500.0,0.00019973,2]
[372636157,1752721855861,-500.0,0.00019973,2]
[372636158,1752721855870,-313.97699375,0.00019973,2]
[372636159,1752721855880,-500.0,0.00019973,2]
[372636160,1752721855890,-500.0,0.00019973,2]
[372636161,1752721855900,-550.49386033,0.00019973,2]
[372636162,1752721855910,-500.0,0.00019973,2]
[372636163,1752721855919,-500.0,0.00019973,2]
[372636165,1752721855928,-501.00855432,0.00019973,2]
[372636166,1752721855938,-500.0,0.00019973,2]
[372636167,1752721855947,-500.0,0.00019973,2]
[372636168,1752721855956,-500.45452731,0.00019973,2]
[372636169,1752721855965,-191.568259,0.00019973,2]
[372636170,1752721855975,-191.568259,0.00019973,2]
[372636171,1752721855985,-7596.05058144,0.00019973,2]
[372636172,1752721855995,-449.5,0.0001998,2]
[372636173,1752721856005,-24770.81241517,0.00019988,7]
[372636187,1752721910731,1000.0,6.8e-07,120]
[372636190,1752721920796,1000.0,6.8e-07,120]
[372636192,1752721934248,1000.0,6.8e-07,120]
[372636194,1752721949151,1000.0,6.8e-07,120]
[372636197,1752721961362,1000.0,6.8e-07,120]
[372636198,1752721973894,1000.0,6.8e-07,120]
[372636199,1752721977261,174.51148278,0.00018066,2]
[372636200,1752721978893,1543.52246252,0.00018064,2]
[372636201,1752721984530,1000.0,6.8e-07,120]
[372636206,1752722003498,1000.0,6.8e-07,120]
[372636212,1752722014226,1000.0,6.8e-07,120]
[372636213,1752722024899,1000.0,6.8e-07,120]
[372636214,1752722035301,1000.0,6.8e-07,120]
[372636217,1752722046004,1000.0,6.8e-07,120]
[372636220,1752722055312,1000.0,6.8e-07,120]
[372636222,1752722065208,1000.0,6.8e-07,120]
[372636223,1752722076714,1000.0,6.8e-07,120]
[372636229,1752722091000,1000.0,6.8e-07,120]
[372636232,1752722100002,1000.0,6.8e-07,120]
[372636234,1752722109583,1000.0,6.8e-07,120]
[372636235,1752722120879,1000.0,6.8e-07,120]
[372636236,1752722132391,1000.0,6.8e-07,120]
[372636239,1752722147368,1000.0,6.8e-07,120]
[372636241,1752722167031,175.86148806,0.00018065,2]
[372636245,1752722219977,236.419794,0.00013699,2]
[372636253,1752722357359,153.87880207,0.00018064,2]
[372636293,1752722498057,533.0222685,0.0001717,2]
[372636316,1752722559201,338.63235413,0.00018064,2]
[372636335,1752722668550,-300.0,0.00018162,2]
[372636336,1752722668577,-500.0,0.00018163,2]
[372636337,1752722668600,-500.0,0.00018163,2]
[372636338,1752722668622,-500.0,0.00018163,2]
[372636339,1752722668644,-554.45242122,0.00018163,2]
[372636340,1752722668669,-500.0,0.00018163,2]
[372636341,1752722668692,-500.0,0.00018163,2]
[372636342,1752722668714,-460.0,0.00018163,2]
[372636343,1752722668735,-460.0,0.00018163,2]
[372636344,1752722668756,-460.0,0.00018163,2]
[372636345,1752722668776,-265.54757878,0.00018163,2]
[372636371,1752722752882,296.30330989,0.00018063,2]
[372636372,1752722771172,463.85682687,0.00027397,120]
[372636386,1752722927849,154.0,0.000273,120]
[372636387,1752722939750,259.26539611,0.00018063,2]
[372636388,1752722944926,154.0,0.000181,2]
[372636389,1752722957551,154.05842584,0.000181,2]
[372636393,1752722986668,223.077,0.00027397,120]
[372636439,1752723032318,-564.6310983,0.00018155,3]
[372636447,1752723032375,-92.0689017,0.00018155,3]
[372636448,1752723032385,-328.35,0.00018155,3]
[372636449,1752723032395,-164.17,0.00018155,3]
[372636451,1752723032404,-492.55,0.00018155,3]
[372636453,1752723032413,-300.0,0.00018161,2]
[372636455,1752723032423,-460.0,0.00018162,2]
[372636457,1752723032434,-460.0,0.00018162,2]
[372636459,1752723032443,-460.0,0.00018162,2]
[372636460,1752723032452,-461.14142485,0.00018162,2]
[372636462,1752723032462,-462.2008577,0.00018162,2]
[372636464,1752723032474,-463.99577769,0.00018162,2]
[372636466,1752723032483,-460.0,0.00018162,2]
[372636468,1752723032495,-436.87770059,0.00018162,2]
[372636470,1752723032504,-460.0,0.00018162,2]
[372636472,1752723032514,-500.0,0.00018162,2]
[372636475,1752723032524,-638.11669485,0.00018162,2]
[372636477,1752723032534,-500.0,0.00018162,2]
[372636480,1752723032544,-500.0,0.00018162,2]
[372636482,1752723032554,-460.0,0.00018162,2]